[Event "Limburg Open 2022"]
[Site "Maastricht"]
[Date "2022.06.04"]
[Round "3.7"]
[White "Braun, Christian"]
[Black "Rebers, Eugene"]
[Result "1/2-1/2"]
[ECO "A05"]
[WhiteElo "2428"]
[BlackElo "2194"]
[PlyCount "116"]
[EventDate "2022.06.03"]
[EventType "swiss"]
[EventRounds "7"]
[EventCountry "NED"]
[SourceTitle "Limburg Open"]
[Source "Limburg Open"]
[SourceDate "2022.06.06"]
[SourceVersion "7"]
[SourceVersionDate "2022.06.06"]
[SourceQuality "1"]
[TimeControl "7200+15"]

{[%evp 0,23,37,28,64,64,123,51,51,-1,20,-17,36,30,23,-8,-14,13,26,19,17,-1,-9,
1,15,-18]} 1. e4 {[%emt 0:00:04]} c5 {[%emt 0:01:34]} 2. Nf3 {[%emt 0:00:11]}
g6 {[%emt 0:00:07]} 3. d3 {[%emt 0:00:05]} Bg7 {[%emt 0:00:11]} 4. g3 {[%emt 0:
00:05]} Nc6 {[%emt 0:01:49]} 5. Bg2 {[%emt 0:00:09]} d6 {[%emt 0:01:37]} 6. O-O
{[%emt 0:00:08]} Nf6 {[%emt 0:03:24]} 7. Re1 {[%emt 0:00:24]} Bg4 {[%emt 0:04:
26]} 8. h3 {[%emt 0:00:57]} Bxf3 {[%emt 0:00:08]} 9. Bxf3 {[%emt 0:00:06]} Nd7
{[%emt 0:03:23]} 10. Nd2 {[%emt 0:01:53]} O-O {[%emt 0:00:29]} 11. Bg2 {
[%emt 0:05:51]} Rc8 {[%emt 0:06:20]} 12. h4 {[%emt 0:02:06]} b5 13. h5 b4 14.
Nc4 Nd4 15. Be3 Nb6 16. Nxb6 Qxb6 17. Qd2 a5 18. c3 Nc6 19. Rad1 bxc3 20. bxc3
Rb8 21. d4 Rfc8 22. e5 dxe5 23. dxc5 Qc7 24. Qd7 e6 25. Qxc7 Rxc7 26. Rd6 Rbc8
27. Red1 Bf6 28. Rb1 Ne7 29. Bb7 Rb8 30. Rdb6 Nf5 31. Be4 Rbc8 32. Bxf5 gxf5
33. R1b5 f4 34. gxf4 exf4 35. Bxf4 Rxc5 36. Rxc5 Rxc5 37. h6 Rc8 38. c4 Bd4 39.
Rd6 Bc5 40. Rd3 f6 41. Rg3+ Kh8 42. a4 Bd4 43. Rb3 Kg8 44. Rb8 Rxb8 45. Bxb8
Kf7 46. Bc7 Bc3 47. f4 Ke7 48. Kg2 Kd7 49. Bb6 Kc6 50. Be3 Bb4 51. Kf3 Bf8 52.
Bd2 Kb6 53. Be3+ Kc6 54. Bd2 Bxh6 55. Bxa5 Kc5 56. Bd8 Kxc4 57. Bxf6 Bxf4 58.
Kxf4 Kb4 1/2-1/2

[Event "Limburg Open 2022"]
[Site "Maastricht"]
[Date "2022.06.04"]
[Round "3.8"]
[White "Jansen, Bob"]
[Black "Lahaye, Rick"]
[Result "0-1"]
[ECO "D00"]
[WhiteElo "2173"]
[BlackElo "2412"]
[PlyCount "80"]
[EventDate "2022.06.03"]
[EventType "swiss"]
[EventRounds "7"]
[EventCountry "NED"]
[SourceTitle "Limburg Open"]
[Source "Limburg Open"]
[SourceDate "2022.06.06"]
[SourceVersion "7"]
[SourceVersionDate "2022.06.06"]
[SourceQuality "1"]
[TimeControl "7200+15"]

1. d4 {[%emt 0:02:00]} d5 {[%emt 0:00:08]} 2. Nc3 {[%emt 0:00:06]} Nf6 {
[%emt 0:03:14]} 3. Bf4 {[%emt 0:00:19]} e6 {[%emt 0:04:13]} 4. Nb5 {[%emt 0:03:
14]} Na6 {[%emt 0:04:07]} 5. e3 {[%emt 0:00:03]} Bb4+ {[%emt 0:09:16]} 6. c3 {
[%emt 0:08:46]} Be7 {[%emt 0:00:24]} 7. Nf3 {[%emt 0:06:40]} O-O 8. Ne5 Ne4 9.
f3 Nd6 10. Nxd6 cxd6 11. Nd3 f6 12. Qb3 Nc7 13. Be2 b6 14. O-O e5 15. Bg3 Be6
16. a4 Qd7 17. a5 b5 18. Nb4 g5 19. Qa2 f5 20. f4 gxf4 21. exf4 e4 22. Bf2 Kh8
23. Bd1 Bf6 24. Re1 Rg8 25. Bb3 Qf7 26. Re3 Rg4 27. g3 Rag8 28. Kh1 a6 29. Rae1
R4g6 30. R1e2 Rh6 31. Be1 Rh3 32. Rg2 Bg7 33. Rf2 Bf8 34. Rg2 Bh6 35. Ree2 Rg6
36. Bd2 Rg4 37. Be1 Qe8 38. Bd2 Bf7 39. Kg1 Bh5 40. Be3 Rgxg3 0-1

[Event "Limburg Open 2022"]
[Site "Maastricht"]
[Date "2022.06.04"]
[Round "3.9"]
[White "Roebers, Eline"]
[Black "Tabak, Stefan"]
[Result "1-0"]
[ECO "B32"]
[WhiteElo "2378"]
[BlackElo "2164"]
[PlyCount "73"]
[EventDate "2022.06.03"]
[EventType "swiss"]
[EventRounds "7"]
[EventCountry "NED"]
[SourceTitle "Limburg Open"]
[Source "Limburg Open"]
[SourceDate "2022.06.06"]
[SourceVersion "7"]
[SourceVersionDate "2022.06.06"]
[SourceQuality "1"]
[TimeControl "7200+15"]

{[%evp 0,28,36,25,73,68,75,52,52,29,-12,28,33,-10,-10,-10,3,-18,57,15,103,25,
60,40,50,63,50,50,42,56,146]} 1. e4 {[%emt 0:00:03]} c5 {[%emt 0:06:17]} 2. Nf3
{[%emt 0:00:03]} Nc6 {[%emt 0:00:04]} 3. d4 {[%emt 0:00:03]} cxd4 {[%emt 0:00:
05]} 4. Nxd4 {[%emt 0:00:03]} e5 {[%emt 0:00:05]} 5. Nb5 {[%emt 0:00:02]} d6 {
[%emt 0:00:06]} 6. N1c3 {[%emt 0:00:02]} a6 {[%emt 0:00:23]} 7. Na3 {[%emt 0:
00:04]} Be6 {[%emt 0:00:28]} 8. Nc4 {[%emt 0:00:19]} Rb8 {[%emt 0:00:06]} 9. a4
{[%emt 0:00:03]} Nb4 {[%emt 0:00:13]} 10. Nd5 {[%emt 0:00:03]} Nxd5 {[%emt 0:
00:29]} 11. exd5 {[%emt 0:00:05]} Bd7 {[%emt 0:02:36]} 12. Be3 {[%emt 0:06:21]}
b5 {[%emt 0:11:59]} 13. axb5 {[%emt 0:01:08]} axb5 {[%emt 0:00:04]} 14. Na5 {
[%emt 0:05:55]} Nf6 {[%emt 0:04:55]} 15. Nc6 Bxc6 16. dxc6 d5 17. Ba7 Bd6 18.
Bxb8 Bxb8 19. Bxb5 O-O 20. O-O Qd6 21. c3 h5 22. Ra6 Bc7 23. Be2 h4 24. g3 hxg3
25. hxg3 Ne4 26. Ra4 f5 27. c4 Nc5 28. Ra3 d4 29. b4 e4 30. bxc5 Qxc5 31. Rb3
d3 32. Bxd3 exd3 33. Qxd3 Rd8 34. Qf3 Qxc4 35. Rb7 Be5 36. Qb3 Rd4 37. Rc1 1-0

[Event "Limburg Open 2022"]
[Site "Maastricht"]
[Date "2022.06.04"]
[Round "3.10"]
[White "Bruil, Rembrandt"]
[Black "De Rover, Yong Hoon"]
[Result "1/2-1/2"]
[ECO "E12"]
[WhiteElo "2166"]
[BlackElo "2359"]
[PlyCount "53"]
[EventDate "2022.06.03"]
[EventType "swiss"]
[EventRounds "7"]
[EventCountry "NED"]
[SourceTitle "Limburg Open"]
[Source "Limburg Open"]
[SourceDate "2022.06.06"]
[SourceVersion "7"]
[SourceVersionDate "2022.06.06"]
[SourceQuality "1"]
[TimeControl "7200+15"]

{[%evp 0,24,37,37,37,-22,-16,-21,27,26,21,30,38,17,17,-5,14,-17,-17,-1,7,4,-7,
2,9,-8,1]} 1. d4 {[%emt 0:00:03]} Nf6 {[%emt 0:01:27]} 2. c4 {[%emt 0:00:06]}
e6 {[%emt 0:00:33]} 3. Nf3 {[%emt 0:00:12]} b6 {[%emt 0:00:32]} 4. a3 {[%emt 0:
00:05]} Bb7 {[%emt 0:00:31]} 5. Nc3 {[%emt 0:00:06]} d5 {[%emt 0:00:35]} 6. Bg5
{[%emt 0:00:04]} Be7 {[%emt 0:01:30]} 7. Qa4+ {[%emt 0:00:23]} Qd7 {[%emt 0:02:
02]} 8. Qxd7+ {[%emt 0:06:38]} Nbxd7 {[%emt 0:00:37]} 9. e3 {[%emt 0:01:39]} a6
{[%emt 0:04:45]} 10. cxd5 {[%emt 0:04:20]} Nxd5 {[%emt 0:00:55]} 11. Nxd5 {
[%emt 0:14:50]} Bxd5 {[%emt 0:00:52]} 12. Bxe7 {[%emt 0:00:12]} Kxe7 {[%emt 0:
00:37]} 13. Be2 c5 14. O-O c4 15. Nd2 b5 16. f3 Nb6 17. Rfc1 Rac8 18. Rc2 f5
19. Rac1 Rhd8 20. Kf2 g5 21. h4 h6 22. hxg5 hxg5 23. Rh1 Rh8 24. Rxh8 Rxh8 25.
e4 Ba8 26. exf5 exf5 27. b3 1/2-1/2

[Event "Limburg Open 2022"]
[Site "Maastricht"]
[Date "2022.06.04"]
[Round "3.11"]
[White "Nemegeer, Arne"]
[Black "Lenaerts, Lennert"]
[Result "0-1"]
[ECO "C00"]
[WhiteElo "2107"]
[BlackElo "2353"]
[PlyCount "66"]
[EventDate "2022.06.03"]
[EventType "swiss"]
[EventRounds "7"]
[EventCountry "NED"]
[SourceTitle "Limburg Open"]
[Source "Limburg Open"]
[SourceDate "2022.06.06"]
[SourceVersion "7"]
[SourceVersionDate "2022.06.06"]
[SourceQuality "1"]
[TimeControl "7200+15"]

{[%evp 0,24,18,36,75,62,42,10,29,12,19,20,17,-15,2,-26,-21,-9,-2,-7,3,7,37,10,
20,12,16]} 1. e4 {[%emt 0:00:03]} c5 {[%emt 0:02:28]} 2. Nf3 {[%emt 0:00:02]}
e6 {[%emt 0:00:04]} 3. g3 {[%emt 0:00:05]} Nc6 {[%emt 0:00:30]} 4. Bg2 {
[%emt 0:00:05]} Nf6 {[%emt 0:00:43]} 5. Qe2 {[%emt 0:00:05]} e5 {[%emt 0:02:59]
} 6. O-O {[%emt 0:00:09]} d6 {[%emt 0:01:58]} 7. c3 {[%emt 0:01:25]} Be7 {
[%emt 0:00:36]} 8. d3 {[%emt 0:00:11]} O-O {[%emt 0:00:26]} 9. Na3 {[%emt 0:01:
23]} Re8 {[%emt 0:00:32]} 10. Nc4 {[%emt 0:02:03]} Bf8 {[%emt 0:00:16]} 11. Ne3
{[%emt 0:06:07]} g6 {[%emt 0:07:43]} 12. Ne1 {[%emt 0:08:59]} Bg7 {[%emt 0:02:
46]} 13. Qd1 Bd7 14. f4 exf4 15. gxf4 b5 16. f5 b4 17. Nc4 Qc7 18. Bf4 Ne5 19.
Nxe5 dxe5 20. Bg5 gxf5 21. exf5 Bc6 22. Qd2 bxc3 23. bxc3 Kh8 24. Qf2 Bxg2 25.
Nxg2 Qd6 26. Rae1 e4 27. dxe4 Nxe4 28. Rxe4 Rxe4 29. f6 Bf8 30. Qf3 Rae8 31.
Qh5 Qe5 32. h4 Bd6 33. Ne3 Qh2# 0-1

[Event "Limburg Open 2022"]
[Site "Maastricht"]
[Date "2022.06.04"]
[Round "3.12"]
[White "Suvorov, Alexander"]
[Black "Arndt, Stefan"]
[Result "1-0"]
[ECO "D36"]
[WhiteElo "2348"]
[BlackElo "2138"]
[PlyCount "105"]
[EventDate "2022.06.03"]
[EventType "swiss"]
[EventRounds "7"]
[EventCountry "NED"]
[SourceTitle "Limburg Open"]
[Source "Limburg Open"]
[SourceDate "2022.06.06"]
[SourceVersion "7"]
[SourceVersionDate "2022.06.06"]
[SourceQuality "1"]
[TimeControl "7200+15"]

{[%evp 0,25,37,23,23,-15,-4,-24,-21,-23,-23,-59,13,12,9,9,42,42,59,52,42,33,43,
34,33,29,30,26]} 1. d4 {[%emt 0:00:04]} d5 {[%emt 0:00:08]} 2. c4 {[%emt 0:00:
09]} e6 {[%emt 0:00:06]} 3. Nc3 {[%emt 0:00:18]} Nf6 {[%emt 0:00:12]} 4. cxd5 {
[%emt 0:00:25]} exd5 {[%emt 0:00:06]} 5. Bg5 {[%emt 0:00:23]} Be7 {[%emt 0:00:
09]} 6. e3 {[%emt 0:00:25]} O-O {[%emt 0:00:13]} 7. Bd3 {[%emt 0:00:39]} Re8 {
[%emt 0:00:23]} 8. Nge2 {[%emt 0:03:38]} c6 {[%emt 0:01:00]} 9. O-O {[%emt 0:
01:41]} Nbd7 {[%emt 0:05:34]} 10. Qc2 {[%emt 0:00:59]} Nf8 {[%emt 0:00:13]} 11.
f3 {[%emt 0:11:41]} g6 12. Rad1 {[%emt 0:00:00]} Ne6 {[%emt 0:05:15]} 13. Bh4 {
[%emt 0:02:20]} b5 14. h3 Bb7 15. Bf2 Rc8 16. a3 a5 17. Qd2 b4 18. axb4 axb4
19. Na4 c5 20. Nxc5 Nxc5 21. dxc5 Bxc5 22. Nd4 Qb6 23. Ra1 Ra8 24. Rfc1 Rxa1
25. Rxa1 Ra8 26. Rxa8+ Bxa8 27. Qc2 Bb7 28. Qa4 Kg7 29. g4 Qa7 30. Qxa7 Bxa7
31. Bb5 Kf8 32. b3 Ne8 33. Be1 Bc5 34. Nc2 Nc7 35. Bf1 Ba6 36. Bxb4 Bxb4 37.
Nxb4 Bxf1 38. Kxf1 Ke7 39. Ke2 Kd6 40. Kd3 Ne6 41. h4 h5 42. gxh5 gxh5 43. Nc2
Nf8 44. Nd4 Ng6 45. Nf5+ Ke5 46. Ng7 Nxh4 47. f4+ Kd6 48. Nxh5 Nf5 49. Nf6 Kc5
50. Nxd5 Kxd5 51. e4+ Ke6 52. exf5+ Kxf5 53. Ke3 1-0

[Event "Limburg Open 2022"]
[Site "Maastricht"]
[Date "2022.06.04"]
[Round "3.13"]
[White "Marciano, Orry"]
[Black "Freeke, Matthieu"]
[Result "0-1"]
[ECO "E04"]
[WhiteElo "1753"]
[BlackElo "2347"]
[PlyCount "54"]
[EventDate "2022.06.03"]
[EventType "swiss"]
[EventRounds "7"]
[EventCountry "NED"]
[SourceTitle "Limburg Open"]
[Source "Limburg Open"]
[SourceDate "2022.06.06"]
[SourceVersion "7"]
[SourceVersionDate "2022.06.06"]
[SourceQuality "1"]
[TimeControl "7200+15"]

{[%evp 0,26,16,16,31,-11,5,-1,-10,-6,2,4,6,-12,23,-27,-14,45,38,11,27,20,42,21,
21,6,19,9,17]} 1. Nf3 {[%emt 0:00:09]} d5 {[%emt 0:00:43]} 2. g3 {[%emt 0:00:
10]} c5 {[%emt 0:00:13]} 3. Bg2 {[%emt 0:00:20]} Nc6 {[%emt 0:00:05]} 4. d4 {
[%emt 0:00:30]} e6 {[%emt 0:00:12]} 5. O-O {[%emt 0:00:42]} Nf6 {[%emt 0:00:08]
} 6. c4 {[%emt 0:00:52]} dxc4 {[%emt 0:00:23]} 7. dxc5 {[%emt 0:03:03]} Qxd1 {
[%emt 0:00:07]} 8. Rxd1 {[%emt 0:00:05]} Bxc5 {[%emt 0:00:05]} 9. Nbd2 {
[%emt 0:00:35]} c3 {[%emt 0:00:08]} 10. bxc3 {[%emt 0:00:05]} O-O {[%emt 0:00:
08]} 11. Nb3 {[%emt 0:00:22]} Be7 {[%emt 0:00:07]} 12. c4 {[%emt 0:08:31]} Bd7
{[%emt 0:00:19]} 13. Be3 {[%emt 0:00:41]} b6 {[%emt 0:11:55]} 14. c5 Nd5 15.
cxb6 axb6 16. Bg5 Ra7 17. Bxe7 Ncxe7 18. e4 Nc3 19. Rd6 Nxe4 20. Rd4 Nc3 21.
Rd2 Bc6 22. Nbd4 Be4 23. Rb2 Ned5 24. Nc6 Ra4 25. Nfe5 Bxg2 26. Kxg2 Rfa8 27.
Nd7 Rxa2 0-1

[Event "Limburg Open 2022"]
[Site "Maastricht"]
[Date "2022.06.04"]
[Round "3.14"]
[White "Van Dael, Siem"]
[Black "Roorda, Thijs"]
[Result "1-0"]
[ECO "C13"]
[WhiteElo "2317"]
[BlackElo "2104"]
[PlyCount "53"]
[EventDate "2022.06.03"]
[EventType "swiss"]
[EventRounds "7"]
[EventCountry "NED"]
[SourceTitle "Limburg Open"]
[Source "Limburg Open"]
[SourceDate "2022.06.06"]
[SourceVersion "7"]
[SourceVersionDate "2022.06.06"]
[SourceQuality "1"]
[TimeControl "7200+15"]

{[%evp 0,26,37,38,46,32,40,24,38,29,29,28,38,33,35,8,3,0,16,15,35,35,28,9,37,
33,66,63,76]} 1. e4 {[%emt 0:00:03]} e6 {[%emt 0:00:07]} 2. d4 {[%emt 0:00:05]}
d5 {[%emt 0:00:05]} 3. Nc3 {[%emt 0:00:05]} Nf6 {[%emt 0:00:27]} 4. Bg5 {
[%emt 0:00:08]} dxe4 {[%emt 0:00:10]} 5. Nxe4 {[%emt 0:00:08]} Be7 {[%emt 0:00:
06]} 6. Bxf6 {[%emt 0:00:10]} gxf6 {[%emt 0:00:20]} 7. Nf3 {[%emt 0:00:10]} f5
{[%emt 0:02:27]} 8. Nc3 {[%emt 0:00:07]} Bf6 {[%emt 0:02:25]} 9. Qd2 {[%emt 0:
03:02]} c6 {[%emt 0:02:48]} 10. O-O-O {[%emt 0:04:41]} Nd7 {[%emt 0:02:24]} 11.
h3 {[%emt 0:03:16]} h5 {[%emt 0:03:22]} 12. Kb1 {[%emt 0:05:56]} Nb6 {[%emt 0:
01:10]} 13. Bd3 {[%emt 0:02:11]} Bg7 {[%emt 0:04:51]} 14. Qf4 Bh6 15. Qe5 f6
16. Qe2 Kf7 17. Rdg1 Nd5 18. Nxd5 cxd5 19. g4 fxg4 20. hxg4 e5 21. Rxh5 e4 22.
Rxd5 exd3 23. Rxd8 dxe2 24. Rxh8 Bxg4 25. Rh7+ Ke6 26. Rxg4 Bd2 27. Re4+ 1-0

[Event "Limburg Open 2022"]
[Site "Maastricht"]
[Date "2022.06.05"]
[Round "4.1"]
[White "Van Foreest, Lucas"]
[Black "Gurevich, Mikhail"]
[Result "1/2-1/2"]
[ECO "A84"]
[WhiteElo "2553"]
[BlackElo "2576"]
[PlyCount "66"]
[EventDate "2022.06.03"]
[EventType "swiss"]
[EventRounds "7"]
[EventCountry "NED"]
[SourceTitle "Limburg Open"]
[Source "Limburg Open"]
[SourceDate "2022.06.06"]
[SourceVersion "7"]
[SourceVersionDate "2022.06.06"]
[SourceQuality "1"]
[TimeControl "7200+15"]

1. d4 {[%emt 0:03:59]} f5 {[%emt 0:00:16]} 2. c4 {[%emt 0:00:29]} d6 {[%emt 0:
00:13]} 3. Nf3 {[%emt 0:00:13]} Nf6 {[%emt 0:00:07]} 4. e3 {[%emt 0:00:29]} g6
{[%emt 0:01:05]} 5. Be2 {[%emt 0:00:06]} Bg7 {[%emt 0:00:11]} 6. b4 {[%emt 0:
00:03]} e5 {[%emt 0:05:07]} 7. dxe5 {[%emt 0:00:21]} dxe5 {[%emt 0:00:07]} 8.
Qxd8+ {[%emt 0:00:28]} Kxd8 {[%emt 0:00:03]} 9. Bb2 {[%emt 0:00:16]} e4 {
[%emt 0:00:10]} 10. Nd4 {[%emt 0:00:21]} Na6 {[%emt 0:02:17]} 11. Nc2 {[%emt 0:
13:56]} c5 {[%emt 0:04:15]} 12. b5 {[%emt 0:02:39]} Nc7 {[%emt 0:01:14]} 13. f3
{[%emt 0:00:31]} b6 {[%emt 0:09:27]} 14. a4 {[%emt 0:09:43]} Bb7 {[%emt 0:02:
01]} 15. f4 {[%emt 0:00:52]} a5 {[%emt 0:00:25]} 16. Nd2 {[%emt 0:04:18]} Ke7 {
[%emt 0:01:55]} 17. h3 {[%emt 0:01:02]} h5 {[%emt 0:04:21]} 18. h4 {[%emt 0:00:
12]} Rhd8 {[%emt 0:01:34]} 19. O-O-O {[%emt 0:00:20]} Bc8 {[%emt 0:06:26]} 20.
Nb1 {[%emt 0:00:16]} Be6 {[%emt 0:00:08]} 21. Rxd8 {[%emt 0:00:15]} Rxd8 {
[%emt 0:00:06]} 22. Rd1 {[%emt 0:00:18]} Rxd1+ {[%emt 0:01:36]} 23. Kxd1 {
[%emt 0:00:05]} Nce8 {[%emt 0:00:04]} 24. Nd2 {[%emt 0:00:15]} Nd6 {[%emt 0:00:
21]} 25. Ke1 {[%emt 0:01:03]} Kf7 {[%emt 0:01:55]} 26. g3 {[%emt 0:00:20]} Nd7
{[%emt 0:00:15]} 27. Bxg7 {[%emt 0:00:04]} Kxg7 {[%emt 0:00:05]} 28. Na3 {
[%emt 0:00:19]} Kf7 {[%emt 0:00:44]} 29. Kf2 {[%emt 0:00:14]} Nf6 {[%emt 0:00:
17]} 30. Kg2 {[%emt 0:01:00]} Ke7 {[%emt 0:00:07]} 31. Kg1 {[%emt 0:00:08]} Kd8
{[%emt 0:00:06]} 32. Kg2 {[%emt 0:00:12]} Kd7 {[%emt 0:00:07]} 33. Kg1 {
[%emt 0:00:28]} Ke7 {[%emt 0:00:19]} 1/2-1/2

[Event "Limburg Open 2022"]
[Site "Maastricht"]
[Date "2022.06.05"]
[Round "4.2"]
[White "Lenaerts, Lennert"]
[Black "Warmerdam, Max"]
[Result "0-1"]
[ECO "B52"]
[WhiteElo "2353"]
[BlackElo "2613"]
[PlyCount "78"]
[EventDate "2022.06.03"]
[EventType "swiss"]
[EventRounds "7"]
[EventCountry "NED"]
[SourceTitle "Limburg Open"]
[Source "Limburg Open"]
[SourceDate "2022.06.06"]
[SourceVersion "7"]
[SourceVersionDate "2022.06.06"]
[SourceQuality "1"]
[TimeControl "7200+15"]

1. e4 {[%emt 0:00:04]} c5 {[%emt 0:03:29]} 2. Nf3 {[%emt 0:00:28]} d6 {[%emt 0:
00:43]} 3. Bb5+ {[%emt 0:00:28]} Bd7 {[%emt 0:00:53]} 4. Bxd7+ {[%emt 0:00:28]}
Nxd7 {[%emt 0:00:06]} 5. O-O {[%emt 0:00:57]} e6 {[%emt 0:00:05]} 6. d4 {
[%emt 0:00:51]} cxd4 {[%emt 0:01:05]} 7. Nxd4 {[%emt 0:01:12]} Ngf6 {[%emt 0:
00:41]} 8. Qe2 {[%emt 0:00:40]} Be7 {[%emt 0:05:16]} 9. c4 {[%emt 0:00:11]} a6
{[%emt 0:01:13]} 10. Nc3 {[%emt 0:01:18]} Rc8 {[%emt 0:00:40]} 11. a4 {[%emt 0:
22:40]} Qa5 {[%emt 0:02:53]} 12. Nc2 {[%emt 0:15:51]} Ne5 {[%emt 0:05:41]} 13.
Ne3 {[%emt 0:01:25]} O-O {[%emt 0:07:51]} 14. Bd2 {[%emt 0:11:49]} Qc5 {
[%emt 0:00:27]} 15. b3 {[%emt 0:00:33]} Bd8 {[%emt 0:01:31]} 16. Nc2 {[%emt 0:
00:52]} Ba5 {[%emt 0:04:18]} 17. Rab1 {[%emt 0:02:51]} Rfe8 {[%emt 0:08:04]}
18. Rfe1 {[%emt 0:06:34]} Qc7 {[%emt 0:02:19]} 19. h3 {[%emt 0:08:11]} Nfd7 {
[%emt 0:23:52]} 20. f4 {[%emt 0:10:10]} Nc6 {[%emt 0:05:37]} 21. Kh1 {[%emt 0:
01:14]} Qb8 {[%emt 0:04:56]} 22. Qf3 {[%emt 0:02:18]} Nb4 {[%emt 0:03:05]} 23.
Ne3 {[%emt 0:04:59]} Qc7 {[%emt 0:01:11]} 24. Red1 {[%emt 0:04:43]} Nc5 {
[%emt 0:01:49]} 25. f5 {[%emt 0:01:41]} Qd8 {[%emt 0:06:44]} 26. Ng4 {[%emt 0:
01:50]} f6 {[%emt 0:12:04]} 27. fxe6 {[%emt 0:04:43]} Nxe6 {[%emt 0:00:41]} 28.
Qg3 {[%emt 0:00:05]} Kh8 {[%emt 0:00:34]} 29. Nd5 {[%emt 0:02:15]} Nxd5 {
[%emt 0:01:03]} 30. Bxa5 {[%emt 0:00:34]} Qxa5 {[%emt 0:00:02]} 31. Rxd5 {
[%emt 0:00:59]} Nc5 {[%emt 0:02:06]} 32. Nf2 {[%emt 0:00:24]} Qb4 {[%emt 0:05:
26]} 33. Qxd6 {[%emt 0:00:30]} h6 {[%emt 0:03:14]} 34. Qf4 {[%emt 0:01:39]}
Nxe4 {[%emt 0:00:34]} 35. Ng4 {[%emt 0:05:58]} Rc5 {[%emt 0:03:53]} 36. Rxc5 {
[%emt 0:04:40]} Qxc5 {[%emt 0:00:02]} 37. Re1 {[%emt 0:00:57]} f5 {[%emt 0:00:
49]} 38. Re3 {[%emt 0:01:20]} g5 {[%emt 0:00:24]} 39. Qf1 {[%emt 0:00:01]} Qxe3
{[%emt 0:00:03]} 0-1

[Event "Limburg Open 2022"]
[Site "Maastricht"]
[Date "2022.06.05"]
[Round "4.3"]
[White "Donchenko, Alexander"]
[Black "Roebers, Eline"]
[Result "1-0"]
[ECO "D30"]
[WhiteElo "2602"]
[BlackElo "2378"]
[PlyCount "47"]
[EventDate "2022.06.03"]
[EventType "swiss"]
[EventRounds "7"]
[EventCountry "NED"]
[SourceTitle "Limburg Open"]
[Source "Limburg Open"]
[SourceDate "2022.06.06"]
[SourceVersion "7"]
[SourceVersionDate "2022.06.06"]
[SourceQuality "1"]
[TimeControl "7200+15"]

1. d4 {[%emt 0:00:03]} d5 {[%emt 0:00:12]} 2. c4 {[%emt 0:00:43]} c6 {[%emt 0:
00:04]} 3. Nf3 {[%emt 0:00:35]} Nf6 {[%emt 0:00:04]} 4. e3 {[%emt 0:00:33]} e6
{[%emt 0:00:04]} 5. Bd3 {[%emt 0:02:39]} dxc4 {[%emt 0:05:55]} 6. Bxc4 {
[%emt 0:00:15]} Nbd7 {[%emt 0:00:04]} 7. O-O {[%emt 0:01:20]} Bd6 {[%emt 0:01:
20]} 8. Nbd2 {[%emt 0:07:33]} b5 {[%emt 0:10:15]} 9. Bd3 {[%emt 0:04:40]} Qc7 {
[%emt 0:23:55]} 10. a4 {[%emt 0:07:03]} Bb7 {[%emt 0:10:20]} 11. axb5 {[%emt 0:
07:33]} cxb5 {[%emt 0:00:09]} 12. e4 {[%emt 0:06:24]} Be7 {[%emt 0:04:08]} 13.
Bxb5 {[%emt 0:02:12]} O-O {[%emt 0:07:50]} 14. Qe2 {[%emt 0:01:02]} Rfd8 {
[%emt 0:07:11]} 15. b3 {[%emt 0:04:06]} a6 {[%emt 0:05:47]} 16. Bd3 {[%emt 0:
04:13]} Nb8 {[%emt 0:03:36]} 17. Bb2 {[%emt 0:01:21]} Qb6 {[%emt 0:02:31]} 18.
Nc4 {[%emt 0:01:30]} Qxb3 {[%emt 0:02:07]} 19. Rfb1 {[%emt 0:01:47]} Qb5 {
[%emt 0:01:01]} 20. Ba3 {[%emt 0:06:37]} Qd7 {[%emt 0:00:04]} 21. Nce5 {
[%emt 0:00:37]} Qc7 {[%emt 0:00:14]} 22. Rc1 {[%emt 0:00:06]} Nc6 {[%emt 0:00:
05]} 23. Bxe7 {[%emt 0:00:13]} Qxe7 {[%emt 0:00:04]} 24. Nxc6 {[%emt 0:00:08]}
1-0

[Event "Limburg Open 2022"]
[Site "Maastricht"]
[Date "2022.06.05"]
[Round "4.4"]
[White "Dardha, Daniel"]
[Black "Suvorov, Alexander"]
[Result "1/2-1/2"]
[ECO "E60"]
[WhiteElo "2555"]
[BlackElo "2348"]
[PlyCount "72"]
[EventDate "2022.06.03"]
[EventType "swiss"]
[EventRounds "7"]
[EventCountry "NED"]
[SourceTitle "Limburg Open"]
[Source "Limburg Open"]
[SourceDate "2022.06.06"]
[SourceVersion "7"]
[SourceVersionDate "2022.06.06"]
[SourceQuality "1"]
[TimeControl "7200+15"]

1. d4 {[%emt 0:00:06]} Nf6 {[%emt 0:07:56]} 2. c4 {[%emt 0:00:14]} g6 {[%emt 0:
00:35]} 3. h4 {[%emt 0:00:46]} Bg7 {[%emt 0:02:36]} 4. Nc3 {[%emt 0:00:55]} d6
{[%emt 0:01:07]} 5. e4 {[%emt 0:00:26]} Nc6 {[%emt 0:01:57]} 6. Nge2 {[%emt 0:
01:46]} O-O {[%emt 0:02:35]} 7. f3 {[%emt 0:00:44]} e5 {[%emt 0:02:54]} 8. d5 {
[%emt 0:03:00]} Nd4 {[%emt 0:01:58]} 9. Be3 {[%emt 0:03:13]} Nxe2 {[%emt 0:13:
38]} 10. Nxe2 {[%emt 0:06:23]} Nh5 {[%emt 0:14:17]} 11. g4 {[%emt 0:03:02]} Nf4
{[%emt 0:03:59]} 12. Qd2 {[%emt 0:00:16]} f5 {[%emt 0:11:07]} 13. gxf5 {
[%emt 0:01:55]} gxf5 {[%emt 0:00:57]} 14. O-O-O {[%emt 0:02:11]} Nxe2+ {
[%emt 0:13:31]} 15. Bxe2 {[%emt 0:04:25]} f4 {[%emt 0:03:14]} 16. Bf2 {[%emt 0:
00:09]} b6 {[%emt 0:01:11]} 17. Kb1 {[%emt 0:06:56]} a5 {[%emt 0:05:07]} 18.
Bf1 {[%emt 0:03:20]} Bf6 {[%emt 0:02:06]} 19. Bh3 {[%emt 0:02:50]} Bxh3 {
[%emt 0:02:10]} 20. Rxh3 {[%emt 0:00:21]} Kh8 {[%emt 0:01:44]} 21. Rg1 {
[%emt 0:06:48]} Qd7 {[%emt 0:02:34]} 22. Rh2 {[%emt 0:01:29]} Rg8 {[%emt 0:00:
51]} 23. Qd1 {[%emt 0:01:13]} Rg7 {[%emt 0:06:38]} 24. Rxg7 {[%emt 0:01:38]}
Qxg7 {[%emt 0:00:14]} 25. Qf1 {[%emt 0:00:30]} Qd7 {[%emt 0:01:13]} 26. Rg2 {
[%emt 0:03:02]} Rg8 {[%emt 0:02:11]} 27. Rxg8+ {[%emt 0:01:06]} Kxg8 {[%emt 0:
00:02]} 28. Qg2+ {[%emt 0:02:44]} Kf7 {[%emt 0:01:22]} 29. h5 {[%emt 0:02:57]}
Qa4 {[%emt 0:01:42]} 30. b3 {[%emt 0:11:28]} Qb4 {[%emt 0:06:17]} 31. Qg4 {
[%emt 0:02:50]} Qd2 {[%emt 0:00:44]} 32. Qe6+ {[%emt 0:01:09]} Kg7 {[%emt 0:00:
06]} 33. h6+ {[%emt 0:00:08]} Kg6 {[%emt 0:00:47]} 34. Qf5+ {[%emt 0:00:14]}
Kf7 {[%emt 0:01:53]} 35. Bh4 {[%emt 0:01:23]} Qd1+ {[%emt 0:00:19]} 36. Kb2 {
[%emt 0:00:06]} Qd2+ {[%emt 0:00:14]} 1/2-1/2